fUSD/lending_fUSD_20250828
["ID","MTS","AMOUNT","RATE_DAILY","PERIOD"]
[381870667,1756383039048,-200.0,0.00018362,2]
[381870668,1756383039057,-151.0,0.00018437,2]
[381870669,1756383039067,-217.24,0.00018517,2]
[381870670,1756383039077,-501.00768718,0.00018521,2]
[381870671,1756383039086,-151.0,0.00018537,2]
[381870672,1756383039095,-151.0,0.00018537,2]
[381870673,1756383039105,-151.0,0.00018537,2]
[381870674,1756383039114,-151.0,0.00018537,2]
[381870675,1756383039124,-151.0,0.00018537,2]
[381870676,1756383039134,-151.0,0.00018537,2]
[381870677,1756383039143,-151.0,0.00018537,2]
[381870678,1756383039153,-153.633643,0.00018537,2]
[381870679,1756383039162,-151.0,0.00018537,2]
[381870680,1756383039172,-200.0,0.00018545,2]
[381870681,1756383039181,-400.0,0.00018546,2]
[381870682,1756383039190,-338.90799678,0.00018546,2]
[381870683,1756383039200,-478.03,0.00018546,2]
[381870684,1756383039210,-400.0,0.00018546,2]
[381870685,1756383039221,-400.0,0.00018546,2]
[381870686,1756383039231,-400.0,0.00018546,2]
[381870687,1756383039240,-250.0,0.00018547,2]
[381870688,1756383039250,-150.0,0.00018547,2]
[381870689,1756383039260,-250.0,0.00018547,2]
[381870690,1756383039269,-500.0,0.00018547,2]
[381870691,1756383039278,-500.0,0.00018547,2]
[381870692,1756383039288,-150.0,0.00018547,2]
[381870693,1756383039297,-500.0,0.00018547,2]
[381870694,1756383039306,-300.0,0.00018547,2]
[381870695,1756383039316,-429.0,0.00018547,2]
[381870696,1756383039326,-500.0,0.00018547,2]
[381870697,1756383039336,-500.0,0.00018547,2]
[381870698,1756383039346,-274.88718997,0.00018547,2]
[381870699,1756383039356,-218.61294035,0.00018547,2]
[381870700,1756383039365,-500.0,0.00018547,2]
[381870701,1756383039374,-500.0,0.00018547,2]
[381870702,1756383039385,-150.0,0.00018547,2]
[381870703,1756383039396,-300.0,0.00018547,2]
[381870704,1756383039405,-500.0,0.00018547,2]
[381870705,1756383039414,-400.0,0.00018547,2]
[381870706,1756383039424,-400.0,0.00018547,2]
[381870707,1756383039434,-400.0,0.00018547,2]
[381870708,1756383039443,-400.0,0.00018547,2]
[381870709,1756383039453,-400.0,0.00018547,2]
[381870710,1756383039464,-400.0,0.00018547,2]
[381870711,1756383039475,-400.0,0.00018547,2]
[381870712,1756383039484,-400.0,0.00018547,2]
[381870713,1756383039494,-400.0,0.00018547,2]
[381870714,1756383039504,-165.83,0.00018547,2]
[381870715,1756383039513,-400.0,0.00018547,2]
[381870716,1756383039522,-421.12,0.00018547,2]
[381870717,1756383039531,-400.0,0.00018547,2]
[381870718,1756383039541,-150.0,0.00018634,2]
[381870719,1756383039550,-492.0,0.00018724,2]
[381870720,1756383039559,-250.0,0.00018724,2]
[381870721,1756383039568,-3105.14124,0.0001873,2]
[381870722,1756383039578,-200.0,0.00018731,2]
[381870723,1756383039587,-251.0,0.00018755,2]
[381870724,1756383039596,-150.89,0.000188,2]
[381870725,1756383039605,-150.89,0.000188,2]
[381870726,1756383039614,-150.89,0.000188,2]
[381870727,1756383039624,-150.89,0.000188,2]
[381870728,1756383039633,-150.89,0.000188,2]
[381870729,1756383039642,-150.89,0.000188,2]
[381870730,1756383039651,-150.89,0.000188,2]
[381870731,1756383039660,-150.89,0.000188,2]
[381870732,1756383039670,-400.0,0.0001882,2]
[381870733,1756383039679,-478.03,0.0001882,2]
[381870734,1756383039689,-400.0,0.0001882,2]
[381870735,1756383039698,-400.0,0.0001882,2]
[381870736,1756383039707,-400.0,0.0001882,2]
[381870737,1756383039716,-250.0,0.00018821,2]
[381870738,1756383039725,-500.0,0.00018821,2]
[381870739,1756383039734,-500.0,0.00018821,2]
[381870740,1756383039744,-250.0,0.00018821,2]
[381870741,1756383039753,-500.0,0.00018821,2]
[381870742,1756383039762,-429.0,0.00018821,2]
[381870743,1756383039772,-500.0,0.00018821,2]
[381870744,1756383039781,-500.0,0.00018821,2]
[381870745,1756383039793,-500.0,0.00018821,2]
[381870746,1756383039802,-444.0,0.00018821,2]
[381870747,1756383039812,-150.0,0.00018821,2]
[381870748,1756383039821,-300.0,0.00018821,2]
[381870749,1756383039831,-500.0,0.00018821,2]
[381870750,1756383039839,-400.0,0.00018821,2]
[381870751,1756383039849,-400.0,0.00018821,2]
[381870752,1756383039858,-400.0,0.00018821,2]
[381870753,1756383039869,-400.0,0.00018821,2]
[381870754,1756383039878,-400.0,0.00018821,2]
[381870755,1756383039887,-400.0,0.00018821,2]
[381870756,1756383039897,-400.0,0.00018821,2]
[381870757,1756383039907,-400.0,0.00018821,2]
[381870758,1756383039916,-603.38065453,0.00018839,2]
[381870759,1756383039925,-501.36298227,0.000189,3]
[381870760,1756383039934,-150.89,0.00018977,2]
[381870761,1756383039944,-150.0,0.00018981,2]
[381870762,1756383039953,-789.03944642,0.00018982,2]
[381870763,1756383039963,-1005.63851014,0.00018983,2]
[381870764,1756383039972,-1222.23757387,0.00018984,2]
[381870765,1756383039981,-1438.83663759,0.00018985,2]
[381870766,1756383039991,-151.0,0.00018985,2]
[381870767,1756383040000,-1655.43570131,0.00018986,2]
[381870768,1756383040010,-1872.03476504,0.00018987,2]
[381870769,1756383040020,-2088.63382876,0.00018988,2]
[381870770,1756383040029,-2305.23289248,0.00018989,2]
[381870771,1756383040038,-2521.83195622,0.0001899,2]
[381870772,1756383040048,-150.89,0.0001899,2]
[381870773,1756383040058,-150.89,0.0001899,2]
[381870774,1756383040069,-150.89,0.0001899,2]
[381870775,1756383040257,-150.89,0.0001899,2]
[381870776,1756383040268,-10000.0,0.00019,2]
[381870777,1756383040277,-751.43597107,0.00019,2]
[381870778,1756383040286,-2467.82839895,0.00019,2]
[381870779,1756383040296,-148218.21509243,0.00019,2]
[381870780,1756383040305,-151.0,0.00019,2]
[381870781,1756383040314,-151.0,0.00019,2]
[381870782,1756383040324,-151.0,0.00019,2]
[381870783,1756383040333,-152.040455,0.00019,2]
[381870784,1756383040342,-151.0,0.00019,2]
[381870785,1756383040352,-151.0,0.00019,2]
[381870786,1756383040361,-151.0,0.00019,2]
[381870787,1756383040370,-151.0,0.00019,2]
[381870788,1756383040379,-249.697872,0.00019,2]
[381870789,1756383040388,-151.0,0.00019,2]
[381870790,1756383040398,-151.0,0.00019,2]
[381870791,1756383040407,-151.0,0.00019,2]
[381870792,1756383040416,-151.573732,0.00019,2]
[381870793,1756383040425,-151.0,0.00019,2]
[381870794,1756383040435,-190.789485,0.00019,2]
[381870795,1756383040444,-190.789485,0.00019,2]
[381870796,1756383040453,-190.789485,0.00019,2]
[381870797,1756383040462,-190.789485,0.00019,2]
[381870798,1756383040472,-151.0,0.00019,2]
[381870799,1756383040481,-151.0,0.00019,2]
[381870800,1756383040490,-151.0,0.00019,2]
[381870801,1756383040500,-151.0,0.00019,2]
[381870803,1756383040510,-151.0,0.00019,2]
[381870804,1756383040519,-151.0,0.00019,2]
[381870805,1756383040529,-151.0,0.00019,2]
[381870806,1756383040538,-151.0,0.00019,2]
[381870807,1756383040549,-151.0,0.00019,2]
[381870808,1756383040559,-151.0,0.00019,2]
[381870809,1756383040568,-151.0,0.00019,2]
[381870810,1756383040578,-151.0,0.00019,2]
[381870811,1756383040588,-151.0,0.00019,2]
[381870812,1756383040597,-151.0,0.00019,2]
[381870813,1756383040607,-151.0,0.00019,2]
[381870814,1756383040616,-1737.699301,0.00019,2]
[381870815,1756383040625,-151.0,0.00019,2]
[381870816,1756383040634,-1737.699301,0.00019,2]
[381870817,1756383040644,-1737.699301,0.00019,2]
[381870818,1756383040653,-436.041688,0.00019,2]
[381870819,1756383040662,-364.18779,0.00019,2]
[381870820,1756383040672,-436.041688,0.00019,2]
[381870821,1756383040681,-1737.699301,0.00019,2]
[381870822,1756383040691,-364.18779,0.00019,2]
[381870823,1756383040699,-436.041688,0.00019,2]
[381870824,1756383040709,-364.18779,0.00019,2]
[381870825,1756383040718,-436.041688,0.00019,2]
[381870826,1756383040727,-364.18779,0.00019,2]
[381870827,1756383040735,-151.0,0.00019,2]
[381870828,1756383040744,-151.0,0.00019,2]
[381870829,1756383040753,-151.81379,0.00019,2]
[381870830,1756383040762,-151.144343,0.00019,2]
[381870831,1756383040772,-151.470977,0.00019,2]
[381870832,1756383040781,-151.268272,0.00019,2]
[381870833,1756383040793,-151.0,0.00019,2]
[381870834,1756383040803,-154.708904,0.00019,2]
[381870835,1756383040812,-154.708904,0.00019,2]
[381870836,1756383040821,-154.708904,0.00019,2]
[381870837,1756383040831,-154.708904,0.00019,2]
[381870838,1756383040840,-151.0,0.00019,2]
[381870839,1756383040849,-151.0,0.00019,2]
[381870840,1756383040857,-151.0,0.00019,2]
[381870841,1756383040867,-151.0,0.00019,2]
[381870842,1756383040876,-151.0,0.00019,2]
[381870843,1756383040886,-151.0,0.00019,2]
[381870844,1756383040896,-151.0,0.00019,2]
[381870845,1756383040905,-151.0,0.00019,2]
[381870846,1756383040914,-151.394459,0.00019,2]
[381870847,1756383040924,-151.0,0.00019,2]
[381870848,1756383040933,-243.995724,0.00019,2]
[381870849,1756383040943,-151.0,0.00019,2]
[381870850,1756383040952,-151.0,0.00019,2]
[381870851,1756383040961,-151.0,0.00019,2]
[381870852,1756383040970,-151.0,0.00019,2]
[381870853,1756383040979,-152.149134,0.00019,2]
[381870854,1756383040988,-151.0,0.00019,2]
[381870855,1756383040997,-151.0,0.00019,2]
[381870856,1756383041006,-151.0,0.00019,2]
[381870857,1756383041015,-151.150336,0.00019,2]
[381870858,1756383041024,-151.0,0.00019,2]
[381870859,1756383041034,-151.0,0.00019,2]
[381870860,1756383041043,-151.514595,0.00019,2]
[381870861,1756383041053,-151.676905,0.00019,2]
[381870862,1756383041062,-256.323466,0.00019,2]
[381870863,1756383041071,-151.0,0.00019,2]
[381870864,1756383041080,-256.323466,0.00019,2]
[381870865,1756383041090,-256.323466,0.00019,2]
[381870866,1756383041099,-151.0,0.00019,2]
[381870867,1756383041108,-256.323466,0.00019,2]
[381870868,1756383041117,-155.602187,0.00019,2]
[381870869,1756383041126,-291.282263,0.00019,2]
[381870870,1756383041135,-291.282263,0.00019,2]
[381870871,1756383041144,-291.282263,0.00019,2]
[381870872,1756383041153,-291.282263,0.00019,2]
[381870873,1756383041163,-151.0,0.00019,2]
[381870874,1756383041173,-151.0,0.00019,2]
[381870875,1756383041182,-151.0,0.00019,2]
[381870876,1756383041191,-151.0,0.00019,2]
[381870877,1756383041200,-151.0,0.00019,2]
[381870878,1756383041209,-151.0,0.00019,2]
[381870879,1756383041219,-177.924131,0.00019,2]
[381870880,1756383041228,-268.186085,0.00019,2]
[381870881,1756383041237,-151.0,0.00019,2]
[381870882,1756383041246,-151.0,0.00019,2]
[381870883,1756383041256,-151.0,0.00019,2]
[381870884,1756383041265,-151.0,0.00019,2]
[381870885,1756383041274,-151.0,0.00019,2]
[381870886,1756383041283,-151.0,0.00019,2]
[381870887,1756383041293,-151.0,0.00019,2]
[381870888,1756383041303,-151.0,0.00019,2]
[381870889,1756383041313,-151.0,0.00019,2]
[381870890,1756383041322,-151.0,0.00019,2]
[381870891,1756383041331,-151.0,0.00019,2]
[381870892,1756383041340,-152.198065,0.00019,2]
[381870893,1756383041349,-151.0,0.00019,2]
[381870894,1756383041358,-1683.070974,0.00019,2]
[381870895,1756383041368,-151.0,0.00019,2]
[381870896,1756383041377,-1683.070974,0.00019,2]
[381870897,1756383041386,-151.0,0.00019,2]
[381870898,1756383041395,-151.0,0.00019,2]
[381870899,1756383041405,-1683.070974,0.00019,2]
[381870900,1756383041414,-1683.070974,0.00019,2]
[381870901,1756383041423,-151.0,0.00019,2]
[381870902,1756383041432,-250.74637,0.00019,2]
[381870903,1756383041442,-250.74637,0.00019,2]
[381870904,1756383041451,-250.74637,0.00019,2]
[381870905,1756383041460,-250.74637,0.00019,2]
[381870906,1756383041469,-324.076933,0.00019,2]
[381870907,1756383041478,-152.125861,0.00019,2]
[381870908,1756383041487,-324.076933,0.00019,2]
[381870909,1756383041496,-324.076933,0.00019,2]
[381870910,1756383041506,-324.076933,0.00019,2]
[381870911,1756383041516,-151.0,0.00019,2]
[381870912,1756383041525,-151.0,0.00019,2]
[381870913,1756383041535,-179.691826,0.00019,2]
[381870914,1756383041544,-151.0,0.00019,2]
[381870915,1756383041553,-151.0,0.00019,2]
[381870916,1756383041563,-151.0,0.00019,2]
[381870917,1756383041572,-224.296035,0.00019,2]
[381870918,1756383041582,-151.0,0.00019,2]
[381870919,1756383041591,-520.099551,0.00019,2]
[381870920,1756383041601,-151.0,0.00019,2]
[381870921,1756383041610,-520.099551,0.00019,2]
[381870922,1756383041619,-151.0,0.00019,2]
[381870923,1756383041628,-151.0,0.00019,2]
[381870924,1756383041638,-520.099551,0.00019,2]
[381870925,1756383041647,-151.796844,0.00019,2]
[381870926,1756383041657,-520.099551,0.00019,2]
[381870927,1756383041666,-151.0,0.00019,2]
[381870928,1756383041675,-151.0,0.00019,2]
[381870929,1756383041685,-1513.909072,0.00019,2]
[381870930,1756383041696,-151.329352,0.00019,2]
[381870931,1756383041705,-1513.909072,0.00019,2]
[381870932,1756383041714,-151.0,0.00019,2]
[381870933,1756383041723,-1513.909072,0.00019,2]
[381870934,1756383041733,-151.0,0.00019,2]
[381870935,1756383041742,-222.863605,0.00019,2]
[381870936,1756383041752,-1513.909072,0.00019,2]
[381870937,1756383041761,-222.863605,0.00019,2]
[381870938,1756383041770,-151.0,0.00019,2]
[381870939,1756383041779,-222.863605,0.00019,2]
[381870940,1756383041791,-222.863605,0.00019,2]
[381870941,1756383041801,-226.289395,0.00019,2]
[381870942,1756383041811,-151.0,0.00019,2]
[381870943,1756383041820,-226.289395,0.00019,2]
[381870944,1756383041831,-151.0,0.00019,2]
[381870945,1756383041841,-228.959388,0.00019,2]
[381870946,1756383041850,-226.289395,0.00019,2]
[381870947,1756383041859,-151.0,0.00019,2]
[381870948,1756383041870,-228.959388,0.00019,2]
[381870949,1756383041880,-151.0,0.00019,2]
[381870950,1756383041888,-226.289395,0.00019,2]
[381870951,1756383041898,-151.0,0.00019,2]
[381870952,1756383041906,-228.959388,0.00019,2]
[381870953,1756383041916,-151.0,0.00019,2]
[381870954,1756383041925,-151.0,0.00019,2]
[381870955,1756383041935,-169.252717,0.00019,2]
[381870956,1756383041944,-228.959388,0.00019,2]
[381870957,1756383041954,-151.0,0.00019,2]
[381870958,1756383041964,-151.0,0.00019,2]
[381870959,1756383041973,-151.0,0.00019,2]
[381870960,1756383041983,-294.516105,0.00019,2]
[381870961,1756383041992,-151.301828,0.00019,2]
[381870962,1756383042001,-151.0,0.00019,2]
[381870963,1756383042010,-151.0,0.00019,2]
[381870964,1756383042019,-151.0,0.00019,2]
[381870965,1756383042028,-151.0,0.00019,2]
[381870966,1756383042037,-151.0,0.00019,2]
[381870967,1756383042046,-161.659204,0.00019,2]
[381870968,1756383042055,-161.659204,0.00019,2]
[381870969,1756383042065,-200.478709,0.00019,2]
[381870970,1756383042074,-161.659204,0.00019,2]
[381870971,1756383042083,-200.478709,0.00019,2]
[381870972,1756383042092,-161.659204,0.00019,2]
[381870973,1756383042101,-200.478709,0.00019,2]
[381870974,1756383042111,-200.478709,0.00019,2]
[381870975,1756383042120,-151.0,0.00019,2]
[381870976,1756383042129,-268.708747,0.00019,2]
[381870977,1756383042138,-7879.626185,0.00019,2]
[381870978,1756383042147,-151.0,0.00019,2]
[381870979,1756383042157,-268.708747,0.00019,2]
[381870980,1756383042166,-7879.626185,0.00019,2]
[381870981,1756383042175,-151.0,0.00019,2]
[381870982,1756383042185,-268.708747,0.00019,2]
[381870983,1756383042194,-7879.626185,0.00019,2]
[381870984,1756383042204,-151.0,0.00019,2]
[381870985,1756383042213,-151.0,0.00019,2]
[381870986,1756383042222,-151.0,0.00019,2]
[381870987,1756383042231,-268.708747,0.00019,2]
[381870988,1756383042240,-151.0,0.00019,2]
[381870989,1756383042249,-151.0,0.00019,2]
[381870990,1756383042258,-7879.626185,0.00019,2]
[381870991,1756383042267,-151.0,0.00019,2]
[381870992,1756383042277,-153.098321,0.00019,2]
[381870993,1756383042286,-151.0,0.00019,2]
[381870994,1756383042295,-151.0,0.00019,2]
[381870995,1756383042305,-151.0,0.00019,2]
[381870996,1756383042314,-151.0,0.00019,2]
[381870997,1756383042323,-151.0,0.00019,2]
[381870998,1756383042332,-151.0,0.00019,2]
[381870999,1756383042342,-533.13613,0.00019,2]
[381871000,1756383042351,-153.370653,0.00019,2]
[381871002,1756383042360,-151.0,0.00019,2]
[381871003,1756383042370,-151.0,0.00019,2]
[381871004,1756383042379,-533.13613,0.00019,2]
[381871005,1756383042388,-151.0,0.00019,2]
[381871006,1756383042397,-151.0,0.00019,2]
[381871007,1756383042407,-151.0,0.00019,2]
[381871008,1756383042416,-533.13613,0.00019,2]
[381871009,1756383042425,-151.0,0.00019,2]
[381871010,1756383042435,-151.0,0.00019,2]
[381871011,1756383042444,-533.13613,0.00019,2]
[381871012,1756383042453,-151.0,0.00019,2]
[381871013,1756383042462,-269.969268,0.00019,2]
[381871014,1756383042471,-151.0,0.00019,2]
[381871015,1756383042480,-225.995225,0.00019,2]
[381871016,1756383042490,-225.995225,0.00019,2]
[381871017,1756383042498,-225.995225,0.00019,2]
[381871018,1756383042507,-225.995225,0.00019,2]
[381871019,1756383042516,-151.0,0.00019,2]
[381871020,1756383042525,-151.0,0.00019,2]
[381871021,1756383042535,-151.0,0.00019,2]
[381871022,1756383042543,-151.0,0.00019,2]
[381871023,1756383042552,-151.0,0.00019,2]
[381871024,1756383042561,-2079.307895,0.00019,2]
[381871025,1756383042571,-2079.307895,0.00019,2]
[381871026,1756383042580,-151.0,0.00019,2]
[381871027,1756383042590,-151.784296,0.00019,2]
[381871028,1756383042599,-2079.307895,0.00019,2]
[381871029,1756383042608,-151.0,0.00019,2]
[381871030,1756383042617,-2079.307895,0.00019,2]
[381871031,1756383042626,-151.0,0.00019,2]
[381871032,1756383042636,-151.0,0.00019,2]
[381871033,1756383042645,-286.288454,0.00019,2]
[381871034,1756383042655,-151.0,0.00019,2]
[381871035,1756383042665,-286.288454,0.00019,2]
[381871036,1756383042674,-222.690955,0.00019,2]
[381871037,1756383042683,-631.76357,0.00019,2]
[381871038,1756383042693,-286.288454,0.00019,2]
[381871039,1756383042703,-631.76357,0.00019,2]
[381871040,1756383042712,-286.288454,0.00019,2]
[381871041,1756383042721,-166.30895,0.00019,2]
[381871042,1756383042730,-631.76357,0.00019,2]
[381871043,1756383042739,-195.966966,0.00019,2]
[381871044,1756383042749,-158.173063,0.00019,2]
[381871045,1756383042758,-631.76357,0.00019,2]
[381871046,1756383042767,-166.30895,0.00019,2]
[381871047,1756383042777,-195.966966,0.00019,2]
[381871048,1756383042787,-151.296892,0.00019,2]
[381871049,1756383042801,-166.30895,0.00019,2]
[381871050,1756383042810,-506.742878,0.00019,2]
[381871051,1756383042819,-195.966966,0.00019,2]
[381871052,1756383042828,-151.0,0.00019,2]
[381871053,1756383042838,-166.30895,0.00019,2]
[381871054,1756383042848,-195.966966,0.00019,2]
[381871055,1756383042857,-151.0,0.00019,2]
[381871056,1756383042867,-272.871615,0.00019,2]
[381871057,1756383042878,-151.0,0.00019,2]
[381871058,1756383042888,-400.0,0.00019094,2]
[381871059,1756383042897,-478.03,0.00019094,2]
[381871060,1756383042907,-400.0,0.00019094,2]
[381871061,1756383042916,-400.0,0.00019094,2]
[381871062,1756383042925,-150.0,0.00019094,2]
[381871063,1756383042935,-150.0,0.00019095,2]
[381871064,1756383042944,-188.0,0.00019095,2]
[381871065,1756383042953,-500.0,0.00019095,2]
[381871066,1756383042964,-429.0,0.00019095,2]
[381871067,1756383042973,-500.0,0.00019095,2]
[381871068,1756383042982,-500.0,0.00019095,2]
[381871069,1756383042992,-200.0,0.00019095,2]
[381871070,1756383043001,-202.31471994,0.00019095,2]
[381871071,1756383043011,-400.0,0.00019095,2]
[381871072,1756383043020,-400.0,0.00019095,2]
[381871073,1756383043029,-400.0,0.00019095,2]
[381871074,1756383043038,-400.0,0.00019095,2]
[381871075,1756383043048,-400.0,0.00019095,2]
[381871076,1756383043056,-400.0,0.00019095,2]
[381871077,1756383043066,-400.0,0.00019095,2]
[381871078,1756383043075,-400.0,0.00019095,2]
[381871079,1756383043084,-1000.0,0.0001915,2]
[381871080,1756383043093,-151.0,0.00019178,2]
[381871081,1756383043103,-287.61899177,0.00019178,2]
[381871082,1756383043112,-152.0,0.0001921,2]
[381871083,1756383043121,-152.0,0.0001921,2]
[381871084,1756383043131,-1221.0,0.0001921,2]
[381871085,1756383043140,-152.0,0.0001921,2]
[381871086,1756383043150,-152.0,0.0001921,2]
[381871087,1756383043159,-1221.0,0.0001921,2]
[381871088,1756383043168,-152.0,0.0001921,2]
[381871089,1756383043177,-152.0,0.0001921,2]
[381871090,1756383043187,-1221.0,0.0001921,2]
[381871091,1756383043196,-3105.14124,0.0001923,2]
[381871092,1756383043205,-207.73262552,0.00019232,2]
[381871093,1756383043214,-400.0,0.00019368,2]
[381871094,1756383043223,-478.03,0.00019368,2]
[381871095,1756383043233,-400.0,0.00019368,2]
[381871096,1756383043242,-400.0,0.00019368,2]
[381871097,1756383043251,-500.0,0.00019369,2]
[381871098,1756383043261,-429.0,0.00019369,2]
[381871099,1756383043270,-500.0,0.00019369,2]
[381871100,1756383043279,-500.0,0.00019369,2]
[381871101,1756383043289,-151.0,0.00019369,2]
[381871102,1756383043298,-190.789485,0.00019369,2]
[381871103,1756383043308,-190.789485,0.00019369,2]
[381871104,1756383043317,-190.789485,0.00019369,2]
[381871105,1756383043327,-190.789485,0.00019369,2]
[381871106,1756383043336,-151.0,0.00019369,2]
[381871107,1756383043345,-151.590116,0.00019369,2]
[381871108,1756383043355,-163.50407924,0.00019369,2]
[381871109,1756383043364,-400.0,0.00019369,2]
[381871110,1756383043373,-400.0,0.00019369,2]
[381871111,1756383043383,-400.0,0.00019369,2]
[381871112,1756383043392,-400.0,0.00019369,2]
[381871113,1756383043401,-400.0,0.00019369,2]
[381871114,1756383043410,-160.18,0.00019369,2]
[381871115,1756383043419,-400.0,0.00019369,2]
[381871116,1756383043429,-151.0,0.00019533,2]
[381871117,1756383043438,-156.233097,0.00019541,2]
[381871118,1756383043447,-151.0,0.00019633,2]
[381871119,1756383043457,-151.0,0.00019633,2]
[381871120,1756383043466,-151.0,0.00019633,2]
[381871121,1756383043475,-151.0,0.00019633,2]
[381871122,1756383043484,-151.0,0.00019633,2]
[381871123,1756383043494,-400.0,0.00019642,2]
[381871124,1756383043505,-478.03,0.00019642,2]
[381871125,1756383043515,-400.0,0.00019642,2]
[381871126,1756383043525,-400.0,0.00019642,2]
[381871127,1756383043534,-500.0,0.00019643,2]
[381871128,1756383043544,-429.0,0.00019643,2]
[381871129,1756383043553,-500.0,0.00019643,2]
[381871130,1756383043562,-500.0,0.00019643,2]
[381871131,1756383043571,-403.15306543,0.00019643,2]
[381871132,1756383043581,-400.0,0.00019643,2]
[381871133,1756383043590,-400.0,0.00019643,2]
[381871134,1756383043599,-400.0,0.00019643,2]
[381871135,1756383043609,-400.0,0.00019643,2]
[381871136,1756383043618,-400.0,0.00019643,2]
[381871137,1756383043628,-179.7695246,0.00019726,2]
[381871138,1756383043637,-3105.14124,0.0001973,2]
[381871139,1756383043647,-3045.3204812,0.000199,3]
[381871140,1756383043656,-151.19521093,0.000199,2]
[381871141,1756383043665,-400.0,0.00019916,2]
[381871142,1756383043675,-478.03,0.00019916,2]
[381871143,1756383043684,-400.0,0.00019916,2]
[381871144,1756383043694,-154.54208669,0.00019916,2]
[381871145,1756383043703,-500.0,0.00019917,2]
[381871146,1756383043712,-429.0,0.00019917,2]
[381871147,1756383043721,-500.0,0.00019917,2]
[381871148,1756383043730,-500.0,0.00019917,2]
[381871149,1756383043739,-400.0,0.00019917,2]
[381871150,1756383043749,-400.0,0.00019917,2]
[381871151,1756383043758,-400.0,0.00019917,2]
[381871152,1756383043767,-400.0,0.00019917,2]
[381871153,1756383043777,-400.0,0.00019917,2]
[381871154,1756383043786,-150.0,0.0001998,2]
[381871155,1756383043800,-85993.8103989,0.0001998,2]
[381871156,1756383043809,-151.0,0.0001998,2]
[381871157,1756383043818,-151.0,0.0001998,2]
[381871158,1756383043827,-151.0,0.0001998,2]
[381871159,1756383043837,-151.0,0.0001998,2]
[381871160,1756383043847,-151.0,0.0001998,2]
[381871161,1756383043856,-151.0,0.0001998,2]
[381871162,1756383043867,-151.0,0.0001998,2]
[381871163,1756383043877,-151.0,0.0001998,2]
[381871164,1756383043886,-225.915973,0.0001998,2]
[381871165,1756383043895,-158.86877,0.0001998,2]
[381871166,1756383043904,-225.915973,0.0001998,2]
[381871167,1756383043914,-220.562036,0.0001998,2]
[381871168,1756383043923,-225.915973,0.0001998,2]